Cogmind - Beta 17 @@@ ROGUE MODE // 2026.06.24 @ 13:05:28 Player: Minty Result: Destroyed by G-67 Veteran with Plasma Rifle Performance ------------- Evolutions (6) 3000 Regions Visited (12) 2400 Robots Destroyed (102) 510 Value Destroyed (3370) 3370 Prototype IDs (29) 580 Alien Tech Used (0) 0 Bonus (7253) 7253 TOTAL SCORE: 17113 Bonus ------- High Alert Combat Kills 26 Follower Combat Kills 568 Prayed to X0-1V1 5000 Major X0-1V1 Interference 1300 Entered DSFs 500 Met Data Miner 300 Friendly Fire -441 Cogmind --------- Core Integrity 0/840 Matter 140/300 Energy 100/100 System Corruption 0% Temperature Cool (9) Movement Core (350) Ox6 Location -4/Factory Parts ------- > --- POWER (2) -------- (None) > --- PROPULSION (5) --- Improved Gyrokinetic Inverter > --- UTILITY (9) ------ Large Storage Unit Improved Signal Interpreter Improved System Shield X0-1V1's Piety Tracker > --- WEAPON (3) ------- (None) > --- INVENTORY (16) --- Graviton Reactor Advanced Power Amplifier Matter Compressor (130) Improved Signal Interpreter Improved Particle Accelerator Long-range Tractor Beam Tesla Bomb Launcher Tesla Bomb Launcher Scatter Rocket Array Mini Smartbomb Launcher Micro-nuke Launcher Heavy Scimitar of Distortion Heavy Pick Armageddon Trap Peak State ------------ > --- POWER ------------ Graviton Reactor > --- PROPULSION ------- Gravmag System Combat Airjet Combat Airjet Improved Gyrokinetic Inverter Q-thruster > --- UTILITY ---------- Power Amplifier Large Storage Unit Advanced Weight Redist. System Improved Signal Interpreter Advanced EM Shield Improved Hacking Suite Improved System Shield System Purifier X0-1V1's Piety Tracker > --- WEAPON ----------- Advanced Plasma Rifle Advanced Datajack Heavy Scimitar of Distortion > --- INVENTORY -------- Cooled Antimatter Reactor Graviton Reactor Q-thruster Advanced Power Amplifier Matter Compressor Matter Compressor Matter Compressor Improved Signal Interpreter Hardlight Generator Tesla Bomb Launcher Tesla Bomb Launcher Scatter Rocket Array Scatter Rocket Array Mini Smartbomb Launcher Heavy Pick Armageddon Trap [Rating: 123] Favorites ----------- Power Deuterium Engine Engine Deuterium Engine Reactor Graviton Reactor Propulsion Improved Treads Treads Improved Treads Leg Aluminum Leg Wheel Armored Wheel Hover Unit Combat Airjet Flight Unit Q-thruster Utility X0-1V1's Piety Tracker Device X0-1V1's Piety Tracker Storage Small Storage Unit Processor Terrain Scan Processor Hackware Improved System Shield Protection Reactive Plating Weapon Gauss Cannon Energy Gun Advanced Plasma Rifle Ballistic Gun Gauss Rifle Ballistic Cannon Gauss Cannon Launcher Mini Smartbomb Launcher Impact Weapon Maul Slashing Weapon Heavy Scimitar of Distortion Piercing Weapon Heavy Pick Special Melee Weapon Advanced Datajack Build | -11 -10 -9 -8 -7 -7 -7 -7 -6 -6 -5 -5 -4 ------- Run | Yrd Mat Mat Mat Fac Low Low Dat Pro Fac Fac DSF Fac Slots Evolved 12 | . . 2 2 2 . . . . 2 2 . 2 Power 1 | . . . . . . . . . . 1 . . Propulsion 3 | . . 1 . 1 . . . . . . . 1 Utility 7 | . . 1 1 1 . . . . 2 1 . 1 Weapon 1 | . . . 1 . . . . . . . . . Parts Attached 94 | . 9 8 19 5 1 . . 14 15 1 . 22 Power 12 | . 1 2 . 1 . . . 1 2 1 . 4 Engine 8 | . 1 2 . 1 . . . 1 2 1 . . Core . | . . . . . . . . . . . . . Reactor 4 | . . . . . . . . . . . . 4 Propulsion 18 | . 2 3 2 . 1 . . 4 1 . . 5 Treads 7 | . 2 3 2 . . . . . . . . . Leg 3 | . . . . . . . . . . . . 3 Wheel 3 | . . . . . 1 . . 2 . . . . Hover 5 | . . . . . . . . 2 1 . . 2 Flight . | . . . . . . . . . . . . . Utility 35 | . 3 1 6 3 . . . 3 10 . . 9 Device 20 | . 2 . 1 3 . . . 2 5 . . 7 Storage 3 | . . 1 . . . . . 1 1 . . . Processor 5 | . 1 . 1 . . . . . 3 . . . Hackware 3 | . . . . . . . . . 1 . . 2 Protection 4 | . . . 4 . . . . . . . . . Artifact . | . . . . . . . . . . . . . Weapon 29 | . 3 2 11 1 . . . 6 2 . . 4 Energy Gun 4 | . . 1 2 . . . . . . . . 1 Energy Cannon . | . . . . . . . . . . . . . Ballistic Gun 7 | . 1 1 3 . . . . 1 . . . 1 Ballistic Cannon 7 | . 2 . 4 1 . . . . . . . . Launcher 8 | . . . 2 . . . . 5 1 . . . Special Weapon . | . . . . . . . . . . . . . Impact Weapon 1 | . . . . . . . . . 1 . . . Slashing Weapon 1 | . . . . . . . . . . . . 1 Piercing Weapon . | . . . . . . . . . . . . . Special Melee Weapon 1 | . . . . . . . . . . . . 1 Unidentified Prototypes 15 | . 1 1 2 . . . . 4 1 . . 6 Corrupted Parts 5 | . . . 1 . . . . 4 . . . . System Corruption 40 | . . . 7 . . . . 33 . . . . Parts Lost 54 | . 1 2 4 . 1 1 . 10 9 . 1 25 Power 10 | . 1 . . . . . . 1 2 . . 6 Propulsion 14 | . . . 3 . 1 . . 3 . . 1 6 Utility 19 | . . . 1 . . . . 4 5 . . 9 Weapon 11 | . . 2 . . . 1 . 2 2 . . 4 Highest Loss Streak 12 | . 1 1 3 . 1 1 . 4 6 . 2 12 To Critical Strikes . | . . . . . . . . . . . . . Average Backups 7 | 6 4 4 8 9 9 8 8 5 5 11 12 14 Power 1 | 1 . . 2 1 1 1 1 . . 1 1 1 Propulsion . | 4 2 3 . . . . . . . . . . Utility 1 | . . . . . 1 2 2 . . 5 5 6 Weapon 4 | 1 1 1 5 7 6 5 5 4 5 5 5 6 Tool/Special . | . . . . . . . . . . . . . Unused Backups 21 | . 4 . 3 . . . . 5 . . . 9 Power 2 | . 1 . . . . . . . . . . 1 Propulsion 7 | . 2 . 2 . . . . 2 . . . 1 Utility 8 | . . . 1 . . . . 2 . . . 5 Weapon 4 | . 1 . . . . . . 1 . . . 2 Tool/Special . | . . . . . . . . . . . . . Average Slot Usage (%) 82 | . 97 92 92 84 86 84 84 68 60 70 60 74 Engine 7 | . 14 11 8 7 7 7 7 7 4 5 5 1 Treads 10 | . 12 26 25 14 10 7 7 2 . . . . Leg 2 | . 16 . . . . . . . . . . 2 Wheel 2 | . . . . . 6 7 7 8 . . . . Hover 3 | . . . . . . . . 5 17 17 12 15 Device 19 | . 11 11 9 22 29 30 30 22 21 23 18 20 Storage 6 | . 2 10 8 7 7 7 7 4 4 5 5 5 Processor 3 | . 11 11 4 . . . . . 3 5 5 5 Protection 1 | . . . 7 4 . . . . . . . . Energy Gun 1 | . 3 4 . . . . . . . . . 2 Ballistic Gun 2 | . 3 . . . . 4 7 8 . . . . Ballistic Cannon 15 | . 21 16 25 28 23 17 15 5 2 . . . Peak Build Rating 123 | 6 20 29 46 49 49 43 43 53 64 60 56 123 Average Rating 41 | 6 8 23 40 47 44 42 43 41 48 57 49 91 On Entrance 37 | 6 6 20 28 45 47 43 43 43 53 54 56 48 Avg Prop Armor Cover (%) 7 | . . . . . 9 7 7 7 16 . 6 3 Naked Turns . | . . . . . . . . . . . . . Heaviest Build 60 | 11 13 20 53 54 49 42 39 39 37 37 37 60 Greatest Support 69 | 20 40 69 69 43 43 12 12 36 42 42 42 65 Greatest Overweight (x) 3 | . . . 1 1 3 3 3 3 1 . 1 1 Average Overweight (x) . | . . . . 1 2 2 3 . . . . . Largest Inventory Capacity 16 | 8 8 9 9 9 9 9 9 9 16 16 16 16 Average Capacity 9 | 8 5 8 9 9 9 9 9 7 11 16 16 16 Most Carried 16 | 6 6 8 9 9 9 9 8 9 12 11 13 16 Average Carried 7 | 6 4 4 8 8 8 8 8 7 5 10 12 14 Final Capacity 16 | 8 5 9 9 9 9 9 9 6 16 16 16 16 Final Carried 14 | 6 4 6 9 9 9 8 8 6 12 11 13 14 Class Distribution -------------------- 34% | Mutant 31% | Gunner 17% | Tank 11% | Scavenger-Mutant Dominant Class ---------------- Mutant | -10/Materials Mutant | -9/Materials Tank | -8/Materials Tank | -7/Factory Gunner | -7/Lower Caves Gunner | -7/Lower Caves Gunner | -7/Data Miner Mutant | -6/Proximity Caves Mutant | -6/Factory Mutant | -5/Factory Scavenger-Mutant | -5/DSF Scavenger-Mutant | -4/Factory Resources | -11 -10 -9 -8 -7 -7 -7 -7 -6 -6 -5 -5 -4 ----------- Run | Yrd Mat Mat Mat Fac Low Low Dat Pro Fac Fac DSF Fac Matter Collected 4153 | 200 193 262 593 327 444 138 . 708 386 . 156 746 Remotely 963 | . . . . 274 441 138 . 110 . . . . Salvage Created 3444 | . 303 141 556 271 153 127 . 390 445 . 140 918 Parts 152 | . 25 8 38 11 5 7 . 16 16 . 2 24 Haulers Intercepted 2 | . . . 1 . . . . . 1 . . . Recyclers Shooed 6 | . . . 1 1 . . . . 3 . . 1 Parts Field Recycled . | . . . . . . . . . . . . . Retrieved Matter . | . . . . . . . . . . . . . Parts Self-Destructed 44 | . . . . . 6 8 . 30 . . . . Prevented 15 | . . . . . . 5 . 10 . . . . Parts Restored . | . . . . . . . . . . . . . Kills | -11 -10 -9 -8 -7 -7 -7 -7 -6 -6 -5 -5 -4 ------- Run | Yrd Mat Mat Mat Fac Low Low Dat Pro Fac Fac DSF Fac Combat Hostiles Destroyed 71 | . 13 7 15 6 2 4 . 7 5 . 2 10 Melee 6 | . . . . . . . . . . . 2 4 Guns 10 | . 1 3 . . . . . 5 . . . 1 Cannons 43 | . 12 4 14 6 2 4 . 1 . . . . AOE 8 | . . . 1 . . . . . 5 . . 2 Classes Destroyed 22 | . 5 1 7 . 1 2 . 3 . . 1 2 Worker 4 | . . . 2 . . . . . 2 . . . Builder 9 | . 1 . 3 1 . . . . 3 . . 1 Tunneler 3 | . 1 . 1 . . . . . 1 . . . Hauler 2 | . . . 1 . . . . . 1 . . . Recycler 5 | . . . 1 1 . . . . 2 . . 1 Mechanic 1 | . . . . . . . . . . . . 1 Operator 4 | . . . 2 1 . . . . . . . 1 Drone 1 | . . . . . . . . 1 . . . . Watcher 1 | . 1 . . . . . . . . . . . Swarmer 18 | . 7 4 3 . . 1 . . 3 . . . Grunt 30 | . 6 3 7 5 2 1 . . . . . 6 Brawler 2 | . . . 1 1 . . . . . . . . Duelist 1 | . . . . . . 1 . . . . . . Protector 1 | . . . . . . . . 1 . . . . Sentry 3 | . . 1 1 . . . . 1 . . . . Demolisher 4 | . . . . . . . . 4 . . . . Specialist 3 | . . . . . . . . . . . 2 1 Hunter 6 | . . . 2 . . . . . 2 . . 2 Programmer 2 | . . . . . . 1 . 1 . . . . Heavy 1 | . . . 1 . . . . . . . . . Enhanced Grunt 1 | . . . . . . . . 1 . . . . Samaritan 2 | . . . . . 2 . . . . . . . Golem 1 | . . . . . . . . . . . . 1 Best Kill Streak 8 | . 3 4 6 5 2 2 . 2 8 . 1 3 Combat Bots Only 5 | . 3 4 3 4 2 2 . 2 5 . 1 3 Max Kills in Single Turn 3 | . 1 1 2 1 1 1 . 1 3 . 1 1 Gunslinging . | . . . . . . . . . . . . . Exploded 3 | . . . 1 . . . . . 3 . . 1 Melee 1 | . . . . . . . . . . . 1 1 Uniques/NPCs Destroyed . | . . . . . . . . . . . . . Combat | -11 -10 -9 -8 -7 -7 -7 -7 -6 -6 -5 -5 -4 -------- Run | Yrd Mat Mat Mat Fac Low Low Dat Pro Fac Fac DSF Fac Hostile Shots Fired 735 | . 72 38 113 24 13 28 . 66 119 . 18 244 Missed 223 | . 24 8 31 5 2 10 . 19 52 . 7 65 Hits 512 | . 48 30 82 19 11 18 . 47 67 . 11 179 Melee 1 | . . . . 1 . . . . . . . . Projectile 511 | . 48 30 82 18 11 18 . 47 67 . 11 179 AOE 22 | . . . . . . . . 22 . . . . Critical Strikes 15 | . 1 1 1 . . . . . 3 . . 9 Part Disruptions 6 | . . . 1 . . . . 1 . . 4 . Damage Taken 8578 | . 561 410 1497 358 169 271 . 1222 1021 . 118 2951 Core 1959 | . 186 65 83 . 14 31 . 373 335 . 27 845 Absorbed by Shields 324 | . . . . . . . . . 128 . . 196 Ignored by Resistances 15 | . . . 15 . . . . . . . . . Regen/Repaired (Parts) 441 | . . . 105 121 . . . . 169 . . 46 Core Remaining (%) 62 | 100 25 83 81 . . . . 17 37 . 96 . Volleys Fired 199 | . 31 17 49 11 9 7 . 50 20 . . 5 Largest 4 | . 2 2 4 4 4 3 . 3 1 . . 1 Hottest 160 | . 70 95 160 160 160 120 . 108 80 . . 88 Shots Fired 460 | . 62 33 135 44 28 20 . 113 20 . . 5 Gun 98 | . 4 9 4 . . 4 . 76 . . . 1 Cannon 329 | . 58 24 122 44 28 16 . 28 9 . . . Launcher 33 | . . . 9 . . . . 9 11 . . 4 Special . | . . . . . . . . . . . . . Kinetic 413 | . 60 24 124 44 28 20 . 104 9 . . . Thermal 14 | . 2 9 2 . . . . . . . . 1 Explosive 17 | . . . . . . . . 2 11 . . 4 Electromagnetic 16 | . . . 9 . . . . 7 . . . . Robot Hit Streak 11 | . 4 11 6 6 7 4 . 11 9 . . 9 Robot Miss Streak 6 | . 3 5 6 3 3 3 . 6 1 . . 2 Penetration Max 1 | . . . 1 1 . . . 1 . . . . Secondary Targets 1 | . . . . . . . . 1 . . . . Max Gunslinging Chain 1 | . . . . . . . . 1 . . . . Shots Hit Robots 292 | . 28 25 62 19 12 9 . 64 17 . 9 47 Core Hits 167 | . 15 18 36 11 5 5 . 29 20 . 2 26 Critical Kills 1 | . . . . . . . . . 1 . . . Critical Parts Destroyed 6 | . . . . . . . . 2 1 . 2 1 Critical Strikes 30 | . 2 1 7 4 2 . . 6 4 . 2 2 Destroy 4 | . . . . . . . . 4 . . . . Blast 19 | . 2 1 7 4 2 . . 2 1 . . . Smash 6 | . . . . . . . . . 3 . 2 1 Impale 1 | . . . . . . . . . . . . 1 Melee Attacks 72 | . . . . . . . . . 4 . 10 58 Impact 35 | . . . . . . . . . 4 . 10 21 Slashing 33 | . . . . . . . . . . . . 33 Piercing 4 | . . . . . . . . . . . . 4 Sneak Attacks 8 | . . . . . . . . . 1 . 2 5 Combat Hostiles 1 | . . . . . . . . . . . . 1 Follow-up Attacks 2 | . . . . . . . . . . . . 2 Damage Inflicted 11791 | . 642 720 2136 908 352 274 . 1595 1845 . 484 2835 Guns 1181 | . 26 140 28 . . 42 . 916 . . . 29 Cannons 4584 | . 508 319 1792 715 352 232 . 491 175 . . . Explosions 3122 | . 96 261 294 167 . . . 188 1466 . . 650 Melee 2833 | . . . . . . . . . 193 . 484 2156 Ramming 71 | . 12 . 22 26 . . . . 11 . . . Kinetic 5578 | . 534 319 1802 715 352 274 . 1407 175 . . . Thermal 485 | . . 401 55 . . . . . . . . 29 Explosive 2315 | . . . . 167 . . . 32 1466 . . 650 Electromagnetic 509 | . 96 . 257 . . . . 156 . . . . Impact 1249 | . . . . . . . . . 193 . 484 572 Slashing 1414 | . . . . . . . . . . . . 1414 Piercing 170 | . . . . . . . . . . . . 170 Highest Corruption 33 | . . . 7 . . . . 33 . . . . Average Corruption 21 | . . . 7 . . . . 22 . . . . Corruption Purged . | . . . . . . . . . . . . . Corruption Blocked . | . . . . . . . . . . . . . Effects 32 | . . . 1 . . . . 31 . . . . Message Errors 6 | . . . . . . . . 6 . . . . Matter Fused 11 | . . . 1 . . . . 10 . . . . Heat Flow Errors 2 | . . . . . . . . 2 . . . . Energy Discharges 5 | . . . . . . . . 5 . . . . Parts Rejected 1 | . . . . . . . . 1 . . . . Data Loss (minor) 4 | . . . . . . . . 4 . . . . Misfires 1 | . . . . . . . . 1 . . . . Weapon Failures 2 | . . . . . . . . 2 . . . . Overload Shots . | . . . . . . . . . . . . . Overflow Damage 668 | . . . 71 35 36 . . 41 141 . 100 244 Projectiles 167 | . . . 64 11 36 . . 41 15 . . . Explosions 118 | . . . 7 24 . . . . 87 . . . Melee 383 | . . . . . . . . . 39 . 100 244 Knockbacks 42 | . 7 7 15 5 1 1 . 1 3 . 1 1 Impact 2 | . . . . . . . . . . . 1 1 Kinetic 37 | . 6 7 13 5 1 1 . 1 3 . . . Secondary 3 | . 1 . 2 . . . . . . . . . Self-Inflicted Damage 625 | . . 66 62 62 . . . . 173 . . 262 Shots 21 | . . 1 4 1 . . . . 4 . . 11 Rammed 16 | . 5 . 5 4 . . . . 2 . . . Targets Rammed 17 | . 6 . 5 4 . . . . 2 . . . Kicked . | . . . . . . . . . . . . . Crushed 1 | . 1 . . . . . . . . . . . Highest Temperature 449 | . 69 126 449 96 344 . . 198 10 . . 28 Average Temperature 127 | . 21 51 179 37 150 . . 88 5 . . 12 Received Heat Transfer 1811 | . 141 123 423 162 99 18 . 42 58 . . 745 Effects 10 | . . . 9 . 1 . . . . . . . Energy Bleed 5 | . . . 4 . 1 . . . . . . . Interference 3 | . . . 3 . . . . . . . . . Matter Decay 1 | . . . 1 . . . . . . . . . Damage (minor) 1 | . . . 1 . . . . . . . . . Siege Activations . | . . . . . . . . . . . . . Martial Activations . | . . . . . . . . . . . . . Shielding Activations . | . . . . . . . . . . . . . Robots Disrupted . | . . . . . . . . . . . . . Combat Hostiles . | . . . . . . . . . . . . . Robots Corrupted 4 | . . . 1 . . . . 1 . . . 2 Combat Hostiles 3 | . . . . . . . . 1 . . . 2 Parts Fried 8 | . . . 3 . . 1 . . . . . 4 Impact Corruptions 8 | . . . . . . . . . 1 . 2 5 Robots Melted . | . . . . . . . . . . . . . Combat Hostiles . | . . . . . . . . . . . . . Parts Melted . | . . . . . . . . . . . . . Heat Transferred 495 | . . 370 75 . . . . . . . . 50 Parts Sabotaged . | . . . . . . . . . . . . . Parts Stolen . | . . . . . . . . . . . . . Parts Stripped 7 | . . . . . . . . . . . . 7 Power Chain Reactions 1 | . . . 1 . . . . . . . . . Alert | -11 -10 -9 -8 -7 -7 -7 -7 -6 -6 -5 -5 -4 ------- Run | Yrd Mat Mat Mat Fac Low Low Dat Pro Fac Fac DSF Fac Maximum Alert Level 2 | . . 1 2 . . . . . 1 . . . Low Security (%) 69 | 100 100 69 16 100 . . . . 33 100 100 100 Level 1 27 | . . 30 69 . . . . . 66 . . . Level 2 3 | . . . 13 . . . . . . . . . Level 3 . | . . . . . . . . . . . . . Level 4 . | . . . . . . . . . . . . . Level 5 . | . . . . . . . . . . . . . High Security . | . . . . . . . . . . . . . Max Security . | . . . . . . . . . . . . . Peak Influence 457 | . 190 307 457 155 . . . . 307 107 107 180 Initial 194 | . . 53 121 155 . . . . 194 107 77 56 Average 158 | . 88 148 306 94 . . . . 237 107 89 49 Influence Increases 3467 | . 386 454 768 209 55 125 . 341 471 4 40 614 Destroy 0b10 Robot/C 1720 | . 260 280 360 120 40 80 . 240 100 . 40 200 Destroy 0b10 Robot/NC 170 | . 15 . 50 15 . . . 25 45 . . 20 Destroy Leader 366 | . 62 70 102 20 . 30 . 30 22 . . 30 Allied During Kill 62 | . . 16 15 . . . . 31 . . . . Successful Hack 47 | . 19 . 5 . . . . . 14 4 . 5 Disable Machine 255 | . 30 45 90 30 . . . . 15 . . 45 Destroy Structure 322 | . . 13 86 24 . . . . 65 . . 134 Advance Influence 150 | . . . . . . . . . 150 . . . Partial Spotted 15 | . . . . . . . . . . . . 15 Lose Combat Pursuer 360 | . . 30 60 . 15 15 . 15 60 . . 165 Influence Decreases 3307 | . 257 294 714 418 189 102 23 269 324 112 44 561 Entered New Map 731 | . . 76 168 188 51 . 23 . 28 112 34 51 Time Decay 1923 | . 247 198 356 230 128 92 . 238 206 . . 228 Lost Part 463 | . 10 20 40 . 10 10 . 31 90 . 10 242 Lost Ally 40 | . . . . . . . . . . . . 40 Purge Threat 150 | . . . 150 . . . . . . . . . Squads Dispatched 30 | . 3 2 6 4 . . . . 7 1 1 6 Investigation 12 | . 1 1 1 2 . . . . 4 1 . 2 Extermination 2 | . . . . . . . . . 1 . . 1 Reinforcement 16 | . 2 1 5 2 . . . . 2 . 1 3 Assault . | . . . . . . . . . . . . . Garrison . | . . . . . . . . . . . . . Intercept . | . . . . . . . . . . . . . Searches Triggered . | . . . . . . . . . . . . . Data Miner Redirects 2 | . . . . . . . . . 2 . . . Construction Impeded 2 | . . . . 1 . . . . 1 . . . Haulers Reinforced . | . . . . . . . . . . . . . Active Scanning Responses . | . . . . . . . . . . . . . Cargo Convoy Interrupts . | . . . . . . . . . . . . . Stealth | -11 -10 -9 -8 -7 -7 -7 -7 -6 -6 -5 -5 -4 --------- Run | Yrd Mat Mat Mat Fac Low Low Dat Pro Fac Fac DSF Fac Distress Signals 14 | . 1 2 2 1 . . . 7 . . . 1 Communications Jammed . | . . . . . . . . . . . . . Distress Signals . | . . . . . . . . . . . . . Times Spotted 136 | . 22 18 25 6 4 8 . 16 16 . 2 19 Peak Tracking Total 9 | . 6 6 4 4 3 3 . 4 9 . 1 6 Tactical Retreats 14 | . . 1 3 . 1 1 . 1 2 . . 5 Traps | -11 -10 -9 -8 -7 -7 -7 -7 -6 -6 -5 -5 -4 ------- Run | Yrd Mat Mat Mat Fac Low Low Dat Pro Fac Fac DSF Fac Traps Triggered 5 | . 3 . . . . . . . 1 . 1 . Indirectly . | . . . . . . . . . . . . . Trap Hack Attempts . | . . . . . . . . . . . . . Triggered . | . . . . . . . . . . . . . Disarmed . | . . . . . . . . . . . . . Reprogrammed . | . . . . . . . . . . . . . Reused . | . . . . . . . . . . . . . Traps Extracted . | . . . . . . . . . . . . . Installed . | . . . . . . . . . . . . . Triggered . | . . . . . . . . . . . . . Most Traps Carried 3 | . . . . . . . . 3 . . . 1 Objects Rigged 3 | . 3 . . . . . . . . . . . Exploded 1 | . 1 . . . . . . . . . . . Machines | -11 -10 -9 -8 -7 -7 -7 -7 -6 -6 -5 -5 -4 ---------- Run | Yrd Mat Mat Mat Fac Low Low Dat Pro Fac Fac DSF Fac Machines Disabled 24 | . 2 3 6 2 . . . 7 1 . . 3 Max in Single Turn 3 | . 1 2 2 2 . . . 2 1 . . 3 Machines Repaired . | . . . . . . . . . . . . . Machines Dismantled . | . . . . . . . . . . . . . Machines Sabotaged . | . . . . . . . . . . . . . Overloaded Fab Kills . | . . . . . . . . . . . . . Hacking | -11 -10 -9 -8 -7 -7 -7 -7 -6 -6 -5 -5 -4 --------- Run | Yrd Mat Mat Mat Fac Low Low Dat Pro Fac Fac DSF Fac Machines Accessed 26 | . 3 1 4 2 . . 4 . 9 1 . 2 Terminals 11 | . 3 1 2 1 . . . . 3 1 . . Fabricators 1 | . . . . . . . . . . . . 1 Repair Stations 7 | . . . 1 1 . . . . 4 . . 1 Recycling Units 3 | . . . 1 . . . . . 2 . . . Scanalyzers . | . . . . . . . . . . . . . Garrison Access . | . . . . . . . . . . . . . Total Hacks 80 | . 13 2 11 3 . . 27 . 14 4 . 6 Successful 55 | . 8 1 7 1 . . 27 . 7 1 . 3 Failed 25 | . 5 1 4 2 . . . . 7 3 . 3 Catastrophic 8 | . . . 2 1 . . . . 5 . . . Database Lockouts . | . . . . . . . . . . . . . Manual 22 | . 10 . 4 1 . . . . 5 . . 2 Terminals 33 | . 13 2 6 2 . . . . 6 4 . . Fabricators 4 | . . . . . . . . . . . . 4 Repair Stations 8 | . . . 1 1 . . . . 4 . . 2 Recycling Units 8 | . . . 4 . . . . . 4 . . . Scanalyzers . | . . . . . . . . . . . . . Garrison Access . | . . . . . . . . . . . . . Terminal Hacks 39 | . 7 1 2 . . . 27 . 1 1 . . Record 11 | . . . . . . . 11 . . . . . Part Schematic 9 | . . . . . . . 9 . . . . . Robot Schematic 4 | . . . . . . . 4 . . . . . Robot Analysis 1 | . 1 . . . . . . . . . . . Prototype ID Bank 4 | . . 1 . . . . 3 . . . . . Open DSF 1 | . . . . . . . . . . 1 . . Alert Level 1 | . . . 1 . . . . . . . . . Unreport Threat 1 | . . . 1 . . . . . . . . . Locate Traps 2 | . 1 . . . . . . . 1 . . . Maintenance Status 1 | . 1 . . . . . . . . . . . Transport Status 1 | . 1 . . . . . . . . . . . Hauler Manifests 1 | . 1 . . . . . . . . . . . Zone Layout 2 | . 2 . . . . . . . . . . . Fabricator Hacks 2 | . . . . . . . . . . . . 2 Load Schematic 1 | . . . . . . . . . . . . 1 Build 1 | . . . . . . . . . . . . 1 Repair Station Hacks . | . . . . . . . . . . . . . Recycling Unit Hacks 6 | . . . 3 . . . . . 3 . . . Process 4 | . . . 1 . . . . . 3 . . . Report Inventory 1 | . . . 1 . . . . . . . . . Retrieve Matter 1 | . . . 1 . . . . . . . . . Scanalyzer . | . . . . . . . . . . . . . Garrison Access Hacks . | . . . . . . . . . . . . . Unauthorized Hacks 8 | . 1 . 2 1 . . . . 3 . . 1 Terminals 2 | . 1 . 1 . . . . . . . . . Botnet 1 | . . . 1 . . . . . . . . . Detonate 1 | . 1 . . . . . . . . . . . Fabricators . | . . . . . . . . . . . . . Repair Stations 6 | . . . 1 1 . . . . 3 . . 1 Patch 6 | . . . 1 1 . . . . 3 . . 1 Recycling Units . | . . . . . . . . . . . . . Scanalyzers . | . . . . . . . . . . . . . Garrison Access . | . . . . . . . . . . . . . Data Cores Recovered . | . . . . . . . . . . . . . Used . | . . . . . . . . . . . . . Hacking Detections 16 | . 3 1 2 1 . . . . 6 1 . 2 Full Trace Events 5 | . . . 1 1 . . . . 1 1 . 1 Feedback Events . | . . . . . . . . . . . . . Feedback Blocked . | . . . . . . . . . . . . . Robot Schematics Acquired 4 | . . . . . . . 4 . . . . . Robots Built 2 | . . . . . . . . . . . . 2 Authchips . | . . . . . . . . . . . . . Time 134 | . . . . . . . . . . . . 134 Total Robot Build Rating 8 | . . . . . . . . . . . . 8 Part Schematics Acquired 9 | . . . . . . . 9 . . . . . Parts Built . | . . . . . . . . . . . . . Authchips . | . . . . . . . . . . . . . Time . | . . . . . . . . . . . . . Total Part Build Rating . | . . . . . . . . . . . . . Part Studies Acquired . | . . . . . . . . . . . . . Parts Repaired . | . . . . . . . . . . . . . Time . | . . . . . . . . . . . . . Parts Recycled . | . . . . . . . . . . . . . Recycled Matter 249 | . . . 216 . . . . . 33 . . . Retrieved Matter 248 | . . . 248 . . . . . . . . . Retrieved Components . | . . . . . . . . . . . . . Parts Scanalyzed . | . . . . . . . . . . . . . Part Schematics Acquired . | . . . . . . . . . . . . . Parts Damaged . | . . . . . . . . . . . . . Bothacking | -11 -10 -9 -8 -7 -7 -7 -7 -6 -6 -5 -5 -4 ------------ Run | Yrd Mat Mat Mat Fac Low Low Dat Pro Fac Fac DSF Fac Used RIF Installer . | . . . . . . . . . . . . . Robots Hacked . | . . . . . . . . . . . . . Non-combat . | . . . . . . . . . . . . . Combat . | . . . . . . . . . . . . . Robot Hacks Applied . | . . . . . . . . . . . . . Relay Couplers Released . | . . . . . . . . . . . . . Fabnet Peak Effective % . | . . . . . . . . . . . . . Robots Rewired 2 | . . . . . . . . 2 . . . . Allies Hacked . | . . . . . . . . . . . . . Hacks Repelled . | . . . . . . . . . . . . . Allies | -11 -10 -9 -8 -7 -7 -7 -7 -6 -6 -5 -5 -4 -------- Run | Yrd Mat Mat Mat Fac Low Low Dat Pro Fac Fac DSF Fac Total Allies 8 | . . 2 1 . . . . 3 . . . 2 Largest Group 3 | . . 2 1 . . . . 3 . . . 2 Highest-Rated Group 164 | . . 98 85 . . . . 164 . . . 64 Highest-Rated Ally 96 | . . 90 85 . . . . 96 . . . 32 Total Orders . | . . . . . . . . . . . . . Ally Attacks 71 | . . 22 14 . . . . 30 . . . 5 Total Damage 2416 | . . 614 432 . . . . 1227 . . . 143 Kills 22 | . . 7 3 . . . . 11 . . . 1 Allies Corrupted . | . . . . . . . . . . . . . Allies Melted . | . . . . . . . . . . . . . X0-1V1 Amusement Gains 150 | . 18 . 30 . . . . . 15 . . 87 Good Acts 42 | . . 4 6 2 2 6 . 16 . . 1 5 Bad Acts 16 | . . . 1 . 2 1 . 8 1 . 2 1 Intel | -11 -10 -9 -8 -7 -7 -7 -7 -6 -6 -5 -5 -4 ------- Run | Yrd Mat Mat Mat Fac Low Low Dat Pro Fac Fac DSF Fac Active Infowar (turns) 1299 | . 571 . 374 172 . . . . 182 . . . Optics 374 | . . . 374 . . . . . . . . . Sensors 182 | . . . . . . . . . 182 . . . Terrain 571 | . 571 . . . . . . . . . . . Jamming 172 | . . . . 172 . . . . . . . . Robot Analysis Total 1 | . 1 . . . . . . . . . . . Derelict Logs Recovered 6 | . . . . . 3 2 . 1 . . . . Drone Launches . | . . . . . . . . . . . . . Drone Recoveries . | . . . . . . . . . . . . . Exploration | -11 -10 -9 -8 -7 -7 -7 -7 -6 -6 -5 -5 -4 ------------- Run | Yrd Mat Mat Mat Fac Low Low Dat Pro Fac Fac DSF Fac Turns Passed 5467 | 12 761 401 812 480 482 476 125 859 436 5 107 511 Spaces Moved 3506 | 11 413 208 361 177 308 320 93 647 521 3 82 362 Core . | . . . . . . . . . . . . . Treads 918 | . 150 208 361 177 22 . . . . . . . Legs 314 | 11 263 . . . . . . . . . . 40 Wheels 1014 | . . . . . 286 320 93 315 . . . . Hover 1260 | . . . . . . . . 332 521 3 82 322 Flight . | . . . . . . . . . . . . . Fastest Speed 46 | 120 120 160 160 240 135 120 135 77 46 63 63 61 Average Speed 119 | 120 134 160 166 240 142 134 135 91 65 63 89 74 Slowest Speed 240 | 120 160 160 240 240 240 135 135 220 121 63 150 190 Overloaded Moves 26 | . . . . . . . . . 26 . . . Propulsion Burnouts . | . . . . . . . . . . . . . Robots Hopped . | . . . . . . . . . . . . . Potential Cave-ins . | . . . . . . . . . . . . . Cave-ins Triggered . | . . . . . . . . . . . . . Exploration Rate (%) 42 | 3 76 28 29 6 62 60 75 83 19 . 61 9 Regions Visited 12 Branch Regions 4 Pre-discovered Areas 2 | . . . . . 1 . 1 . . . . . Known Exits Taken 5 | . . . 1 . . 1 . 1 1 1 . . Unknown Exits Taken 6 | 1 1 1 . 1 1 . 1 . . . . . Scrap Searched 4 | . . . . . 2 1 . 1 . . . . Spaces Dug 1 | . . . . . . . . . . . . 1 Terrain Destroyed 340 | . . 6 64 25 23 12 . 11 95 . . 104 Melee 1 | . . . . . . . . . . . . 1 Projectile 135 | . . . 63 24 23 12 . 10 3 . . . AOE 203 | . . 6 1 1 . . . . 92 . . 103 Terrain Rammed . | . . . . . . . . . . . . . Walls Destroyed . | . . . . . . . . . . . . . Machines Disabled . | . . . . . . . . . . . . . Actions | -11 -10 -9 -8 -7 -7 -7 -7 -6 -6 -5 -5 -4 --------- Run | Yrd Mat Mat Mat Fac Low Low Dat Pro Fac Fac DSF Fac Total 4233 | 10 550 242 467 199 331 349 92 822 575 6 96 494 Wait 162 | . 89 4 5 . 4 4 . 29 . . 2 25 Move 3496 | 10 412 207 360 176 307 319 92 646 521 3 81 362 Hop . | . . . . . . . . . . . . . Pick Up 34 | . . 3 8 1 2 . . 8 6 . . 6 Fast Attach 67 | . 2 3 10 1 2 . . 13 16 . . 20 Attach 23 | . 1 3 3 . . 1 . 5 2 2 . 6 Detach 27 | . 1 2 5 . 1 . . 7 2 1 2 6 Swap 35 | . 6 2 12 4 2 . . 5 2 . 1 1 Drop 41 | . 2 1 10 2 4 . . 14 1 . . 7 Fire 199 | . 31 17 49 11 9 7 . 50 20 . . 5 Melee 70 | . . . . . . . . . 4 . 10 56 Ram 1 | . . . . . . . . . 1 . . . Kick . | . . . . . . . . . . . . . Crush 15 | . 6 . 5 4 . . . . . . . . Escape Stasis 9 | . . . . . . 9 . . . . . . Rewire 54 | . . . . . . 9 . 45 . . . . Trap . | . . . . . . . . . . . . . Miscellaneous . | . . . . . . . . . . . . . Route ------- -11/Scrapyard -10/Materials (discovered 4 exits: *Mat x2 / [*Min] / [*Sub]) -9/Materials -8/Materials (discovered 2 exits: *Fac x2) -7/Factory -7/Lower Caves -7/Lower Caves (discovered 2 exits: *Fac / *Dat) -7/Data Miner -6/Proximity Caves -6/Factory (discovered 2 exits: *Fac x2) -5/Factory -5/DSF -4/Factory (discovered 1 exit: [*Res]) History --------- Turn | Location | Event 1 | -11/Scrapyard | Discovered new exit (range 3) 13 | -11/Scrapyard | Entered Materials 164 | -10/Materials | Discovered new exit (range 12) 302 | -10/Materials | Build established: Mutant 349 | -10/Materials | Discovered new exit (range 9) 425 | -10/Materials | Core integrity fell below 50% 545 | -10/Materials | Discovered new exit (range 14) 593 | -10/Materials | Discovered new exit (range 7) 695 | -10/Materials | Prayed at D.C.S.S. Altar Unit 774 | -10/Materials | Entered another Materials area 774 | -9/Materials | Evolved 2 slots: Propulsion x1, Utility x1 857 | -9/Materials | X0-1V1 sent allied H-61 Shepherd (x1) 985 | -9/Materials | Inventory capacity permanently improved by X0-1V1 (+1) 1041 | -9/Materials | X0-1V1 turns hostiles against one another 1149 | -9/Materials | Discovered new exit (range 16) 1175 | -9/Materials | Entered another Materials area 1175 | -8/Materials | Evolved 2 slots: Utility x1, Weapon x1 1291 | -8/Materials | X0-1V1 sent allied B-75 Beast (x1) 1331 | -8/Materials | X0-1V1 announced a LAN party 1505 | -8/Materials | Lost 3 parts (2n1u) 1847 | -8/Materials | Weapon slot count temporarily expanded by X0-1V1 (+1) 1875 | -8/Materials | Build established: Tank 1953 | -8/Materials | Identified exit to Factory 1953 | -8/Materials | X0-1V1 revealed exit location to -7/Factory 1974 | -8/Materials | Discovered exit to Factory (range 5) 1987 | -8/Materials | Entered Factory 1987 | -7/Factory | Evolved 2 slots: Propulsion x1, Utility x1 2369 | -7/Factory | Discovered new exit (range 10) 2467 | -7/Factory | Entered Lower Caves 2557 | -7/Lower Caves | Learned location of 1 exit from Factory 2599 | -7/Lower Caves | Build established: Gunner 2665 | -7/Lower Caves | Melee accuracy permanently improved by X0-1V1 (+6%) 2766 | -7/Lower Caves | Learned location of Extension (-5) 2793 | -7/Lower Caves | Learned Factory terminal intel 2926 | -7/Lower Caves | Discovered new exit (range 12) 2949 | -7/Lower Caves | Entered another Lower Caves area 2961 | -7/Lower Caves | Energy generation permanently improved by X0-1V1 (+15) 2962 | -7/Lower Caves | Learned 4 Factory zone layouts 3002 | -7/Lower Caves | Identified exit to Factory 3002 | -7/Lower Caves | X0-1V1 revealed exit location to -6/Factory 3053 | -7/Lower Caves | Encountered a Warlord checkpoint 3201 | -7/Lower Caves | Learned Factory emergency access door positions 3329 | -7/Lower Caves | Identified exit to Data Miner 3329 | -7/Lower Caves | X0-1V1 revealed exit location to -7/Data Miner 3425 | -7/Lower Caves | Entered Data Miner 3425 | -7/Data Miner | Discovered new exit (range 6) 3451 | -7/Data Miner | Met Data Miner 3484 | -7/Data Miner | Learned location of Section 7 (-2) 3484 | -7/Data Miner | Acquired the access code to Warlord's prototype stash 3506 | -7/Data Miner | Received God Mode back door access code from Data Miner 3550 | -7/Data Miner | Entered Proximity Caves 3558 | -6/Proximity Caves | Spotter reported a threat 3569 | -6/Proximity Caves | X0-1V1 activates XOMVISION 3604 | -6/Proximity Caves | X0-1V1 revealed exit location to -6/Factory 3614 | -6/Proximity Caves | System corruption reached 10% 3651 | -6/Proximity Caves | Spotted B-75 Beast 3750 | -6/Proximity Caves | Attracted the attention of an 0b10 checkpoint 3792 | -6/Proximity Caves | Lost 3 parts (1n1u1w) 3944 | -6/Proximity Caves | Lost 4 parts (1n3u) 3962 | -6/Proximity Caves | Learned Factory stockpile data 4000 | -6/Proximity Caves | Core integrity fell below 50% 4007 | -6/Proximity Caves | Escorted by Enhanced Grunt 4008 | -6/Proximity Caves | Core integrity fell below 20% 4030 | -6/Proximity Caves | Lost 3 parts (1p1n1w) 4030 | -6/Proximity Caves | System corruption reached 30% 4060 | -6/Proximity Caves | Found Prototype Launcher 4060 | -6/Proximity Caves | Identified Tesla Bomb Launcher 4068 | -6/Proximity Caves | Found Prototype Launcher 4068 | -6/Proximity Caves | Identified Mni. Smartbomb Launcher 4071 | -6/Proximity Caves | Found Prototype Launcher 4071 | -6/Proximity Caves | Identified Scatter Rocket Array 4074 | -6/Proximity Caves | Found Scatter Rocket Array 4084 | -6/Proximity Caves | Found Mni. Smartbomb Launcher 4089 | -6/Proximity Caves | Found Tesla Bomb Launcher 4213 | -6/Proximity Caves | X0-1V1 rewrote Grenadier 5a IFF filter 4246 | -6/Proximity Caves | X0-1V1 activates XOMVISION 4253 | -6/Proximity Caves | Core integrity restored by X0-1V1 (+81) 4260 | -6/Proximity Caves | X0-1V1 rewrote Grenadier 5b IFF filter 4261 | -6/Proximity Caves | X0-1V1 whisked you away to safety 4351 | -6/Proximity Caves | Lost 6 allies 4409 | -6/Proximity Caves | Entered Factory 4409 | -6/Factory | Evolved 2 slots: Utility x2 4410 | -6/Factory | Identified exit to Factory 4414 | -6/Factory | Loaded intel: 26 terminal locations 4492 | -6/Factory | Incoming investigation squad redirected 4598 | -6/Factory | Lost 6 parts (1p4u1w) 4611 | -6/Factory | Build established: Mutant 4685 | -6/Factory | Core integrity fell below 50% 4827 | -6/Factory | Incoming investigation squad redirected 4845 | -6/Factory | Entered another Factory area 4845 | -5/Factory | Evolved 2 slots: Power x1, Utility x1 4850 | -5/Factory | Identified exit to DSF 4850 | -5/Factory | Entered DSF 4899 | -5/DSF | Additional patrols routed to DSF 4946 | -5/DSF | Discovered new exit (range 15) 4956 | -5/DSF | Identified exit to Factory 4957 | -5/DSF | Entered Factory 4957 | -4/Factory | Evolved 2 slots: Propulsion x1, Utility x1 4971 | -4/Factory | X0-1V1 released a cloud of subatomizers 5075 | -4/Factory | Lost 4 parts (2p2u) 5115 | -4/Factory | X0-1V1 sent you to a vault 5120 | -4/Factory | Found Prototype Device 5120 | -4/Factory | Identified Imp. Particle Accelerator 5128 | -4/Factory | Found Prototype Slashing Weapon 5128 | -4/Factory | Identified Hvy. Scimitar of Distortion 5137 | -4/Factory | Found Prototype Device 5137 | -4/Factory | Identified System Purifier 5140 | -4/Factory | Found Prototype Device 5140 | -4/Factory | Identified Adv. EM Shield 5350 | -4/Factory | X0-1V1 foreshadows a heat wave 5371 | -4/Factory | Fabricated Y-54 Guardian? 5391 | -4/Factory | Lost 6 parts (1p2n1u2w) 5394 | -4/Factory | Discovered new exit (range 16) 5426 | -4/Factory | Core integrity fell below 50% 5463 | -4/Factory | Core integrity fell below 20% 5468 | -4/Factory | Destroyed by G-67 Veteran with Plasma Rifle Last Messages --------------- 05445_ Lgt. Antimatter Reactor destroyed. 05445_ Flexi-carbon Leg destroyed. 05449_ Hardlight Generator destroyed. 05449_ Cld. Antimatter Reactor destroyed. 05453_ Lgt. Antimatter Reactor destroyed. 05455_ X-77 Beamer destroyed. 05455_ Flexi-carbon Leg destroyed. 05455_ Myomer Leg destroyed. 05459_ Adv. EM Shield destroyed. 05461_ Adv. Heat Sink destroyed. 05461_ Critical hit (Burn: +37). 05462_ The unstable cave ceiling collapses. 05462_ X0-1V1 is amused. 05462_ G-67 Veteran destroyed. 05465_ U-05 Engineer builds a Wall. 05465_ U-05 Engineer destroyed. 05467_ The unstable cave ceiling collapses. 05467_ Imp. Hacking Suite destroyed. 05467_ Scatter Rocket Array destroyed. 05468_ X0-1V1 chortles! Map ----- +----------------------------------------------------+ | ????????????????????????????##### + """ # | | ???????????????????????????? ## # """ # | | ???????????????????????????? ## # """ # | | ???????????????????????????? ## # # | | ??????????????????????# """" ## ##"+##### | | ??????????????????????# """" ## #] # | | ??????????????????????# """" ## # # | | ??????????????????????# """" ## # # | | ??????????????????????? """" ## # # | | ????????????????????????? ??# #! # | | ???????????????????????####"##### # # | | ???????????????????????# # " " " # | | ??????????????? ###### # " " " # | | ??????? # + " " " # | | ??????? < # ! # " " " # | | ??????? # [[ # " " " # | | ??????? ####+########; # " " " # | | ??????? # #? ; # " " " # | | ???????# # # " " " # | | ???????# # " " " # | | ???????# # # | | ???????# # # | | ???????# # +###### | | ???????# # = #????? | | ???????# ??? m # ###### | | ???????# #??????# # @ x # !! # | | #####??# #??????# # ### # !! # | | ! #### ######## # + # | | [ # ! ! # """" # # ##+## # ! # | | # !== # ""R" # ###g # # ] # | | + + "" " /=[ g!## """ + + # | | =# ##### ########## """ ### # | | ! # #???# #????????#[ """ #?# # | | ! [#######???# #????????# #?# # | | #####?????????########????????#########???##### | | | | | | | | | | | | | | | | | | | | | | | | | | | | | | | +----------------------------------------------------+ Best States ------------- Heat Dissipation 62 Coolant Potential 65 Energy Generation 58 Energy Capacity 1775 Matter Stores 746 Matter Capacity 800 Sight Range 22 Robot Scan Range 15 Terrain Scan Range 14 Terrain Scan Density 85 Jamming Range 12 Power Amplification 30 Additional Mass Support 9 Armor Coverage 600 Resistance: KI 20 Resistance: EM 50 Propulsion Shielding 66 Phase Shifting 10 Evasion (%) 65 Targeting Accuracy 6 Recoil Reduction 4 Kinecelleration 30 Offensive Hacking 12 Defensive Hacking 12 Item Schematics ----------------- Combat Drone Bay | -7/Data Miner | Free Lgt. Regenerative Plating | -7/Data Miner | Free Biomechanical Wings | -7/Data Miner | Free Thermal Defense Suite | -7/Data Miner | Free Ion Burst Cannon | -7/Data Miner | Free Antigrav System | -7/Data Miner | Free Imp. Component Analysis Suite | -7/Data Miner | Free Disruptor Cannon | -7/Data Miner | Free Adv. Hacking Suite | -7/Data Miner | Free Robot Schematics ------------------ Y-54 Guardian | -7/Data Miner | Free R-10 Processor | -7/Data Miner | Free W-25 Informer | -7/Data Miner | Free A-15 Conveyor | -7/Data Miner | Free Fabricated ------------ Y-54 Guardian | x2 | -4/Factory Repaired ---------- Nothing Studied --------- None Alien Tech Used ----------------- None Achievements -------------- None Challenges ------------ None Game ------ Seed RagnarokSalvagingWall Manual? 0 Play Time 00:43:46 Cumulative 1327.6 hours Start 2026.06.23 @ 19:20:39 End 2026.06.24 @ 13:05:28 Sessions 5 Manual Loads 0 Difficulty Rogue Special Mode None Game No. 1624 Rogue 1340 Adventurer 124 Explorer 160 Win Type - Total 66 Types 51/0/9/4/1/0/0/1/0/0 Lore% 93 Gallery% 83 Achievement% 71 Wizard Run 0 Options --------- Layout 0 ASCII 0 Keyboard 1 Movement Numpad Keybinds 0 Fullscreen 2 Font 18/X11 Map View 76x50 Zoom Use 1% Tactical HUD 1 Map Filters NONE Filters NONE Steam 1 RUN: 01416d7a-d532-4e5f-81fe-85cdbad42e0b